bitfinex/quotes_BTCUSD_20241013
["timestamp","ask_amount","ask_price","bid_price","bid_amount"]
[1728845686588,0.01577231,62556.0,62555.0,0.38975714]
[1728845686818,0.01577231,62556.0,62555.0,0.40775714]
[1728845687302,0.01577231,62556.0,62555.0,0.40552914]
[1728845687534,0.01577231,62556.0,62555.0,0.42752914]
[1728845688452,0.01577931,62556.0,62555.0,0.41555301]
[1728845688681,0.01577931,62556.0,62555.0,0.42753472]
[1728845691966,0.01578857,62556.0,62555.0,0.41555301]
[1728845692211,0.01578857,62556.0,62555.0,0.42754174]
[1728845692703,0.01578857,62556.0,62555.0,0.41554174]
[1728845692912,0.01578857,62556.0,62555.0,0.42954174]
[1728845693336,0.01578857,62556.0,62555.0,0.41954174]
[1728845693597,0.01578857,62556.0,62555.0,0.43254174]
[1728845695353,0.03977315,62556.0,62555.0,0.43254174]
[1728845695795,0.03979417,62556.0,62555.0,0.43254174]
[1728845699994,0.03981126,62556.0,62555.0,0.42055301]
[1728845700213,0.03981126,62556.0,62555.0,0.43256286]
[1728845702400,0.000819,62556.0,62555.0,0.43256286]
[1728845702613,0.03982462,62556.0,62555.0,0.43256313]
[1728845704401,0.03982462,62556.0,62555.0,0.48047643]
[1728845705475,0.03982462,62556.0,62555.0,0.43256313]
[1728845706430,0.03982462,62556.0,62555.0,0.50448945]
[1728845706857,0.03982462,62556.0,62555.0,0.73156822]
[1728845707058,0.03982462,62556.0,62555.0,0.6596419]
[1728845707473,0.03982462,62556.0,62555.0,0.75554367]
[1728845708109,0.03982462,62556.0,62555.0,0.6596419]
[1728845708507,0.03982462,62556.0,62555.0,0.75554367]
[1728845709608,0.03982462,62556.0,62555.0,0.6596419]
[1728845710093,0.03983574,62556.0,62555.0,0.6596419]
[1728845710298,0.03983557,62556.0,62555.0,0.65964126]
[1728845710545,0.03983558,62556.0,62555.0,0.77951849]
[1728845710783,0.03983558,62556.0,62555.0,0.85679849]
[1728845711451,0.03983558,62556.0,62555.0,0.73692128]
[1728845712265,0.01582538,62556.0,62555.0,0.73692128]
[1728845713811,0.01582538,62556.0,62555.0,0.73494128]
[1728845714025,0.03983154,62556.0,62555.0,0.65964128]
[1728845714230,0.03983154,62556.0,62555.0,0.60960022]
[1728845717813,0.03984501,62556.0,62555.0,0.59759072]
[1728845718067,0.03984501,62556.0,62555.0,0.60959568]
[1728845719770,0.03984501,62556.0,62555.0,0.60981788]
[1728845721514,0.03984501,62556.0,62555.0,0.6098213]
[1728845722612,0.03984501,62556.0,62555.0,0.72987217]
[1728845723486,0.03984501,62556.0,62555.0,0.6098213]
[1728845723934,0.03984501,62556.0,62555.0,0.72986095]
[1728845725264,0.000819,62556.0,62555.0,0.71785599]
[1728845725477,0.03984467,62556.0,62555.0,0.72985693]
[1728845729237,0.01582867,62556.0,62555.0,0.71775658]
[1728845729452,0.03984415,62556.0,62555.0,0.7297564]
[1728845730348,0.03984415,62556.0,62555.0,0.60974991]
[1728845731446,0.03984415,62556.0,62555.0,0.7297564]
[1728845733694,0.000819,62556.0,62555.0,0.7297564]
[1728845733901,0.0398436,62556.0,62555.0,0.60974991]
[1728845734339,0.0398436,62556.0,62555.0,0.72970227]
[1728845734551,0.0398436,62556.0,62555.0,0.60974991]
[1728845735185,0.0398436,62556.0,62555.0,0.72970034]
[1728845736557,0.0398436,62556.0,62555.0,0.5124319]
[1728845736558,0.1333436,62556.0,62555.0,0.5124319]
[1728845736808,0.13334461,62556.0,62555.0,0.4485259]
[1728845737257,0.13334461,62556.0,62555.0,0.52050335]
[1728845737694,0.13334461,62556.0,62555.0,0.52049991]
[1728845738553,0.13334461,62556.0,62555.0,0.34330283]
[1728845738769,0.13334461,62556.0,62555.0,0.27132882]
[1728845738991,0.13334461,62556.0,62555.0,0.28054026]
[1728845739203,0.03984461,62556.0,62555.0,0.30453083]
[1728845739385,0.03984461,62556.0,62555.0,0.40966956]
[1728845739630,0.03984461,62556.0,62555.0,0.48163667]
[1728845740472,0.000819,62556.0,62555.0,0.49263685]
[1728845740687,0.03983546,62556.0,62555.0,0.49263685]
[1728845740872,0.03983546,62556.0,62555.0,0.50463048]
[1728845743460,0.03983546,62556.0,62555.0,0.32751774]
[1728845744526,0.01582616,62556.0,62555.0,0.32751774]
[1728845744745,0.03983761,62556.0,62555.0,0.32751774]
[1728845744961,0.03983759,62556.0,62555.0,0.31552411]
[1728845745213,0.21013759,62556.0,62555.0,0.30349871]
[1728845745435,0.21013759,62556.0,62555.0,0.25554713]
[1728845745644,0.21013759,62556.0,62555.0,0.243557]
[1728845746283,0.21013759,62556.0,62555.0,0.25554379]
[1728845746508,0.21013759,62556.0,62555.0,0.2555434]
[1728845747771,0.21013759,62556.0,62555.0,0.30349498]
[1728845748648,0.21013759,62556.0,62555.0,0.2555434]
[1728845750631,0.21013759,62556.0,62555.0,0.243557]
[1728845752223,0.171119,62556.0,62555.0,0.243557]
[1728845752431,0.21012855,62556.0,62555.0,0.243557]
[1728845753606,0.21012855,62556.0,62555.0,0.211497]
[1728845756115,0.21012566,62556.0,62555.0,0.211497]
[1728845756584,0.21012407,62556.0,62555.0,0.211497]
[1728845757030,0.13472407,62556.0,62555.0,0.211497]
[1728845759778,0.13472407,62556.0,62555.0,0.243557]
[1728845760460,0.13472407,62556.0,62555.0,0.083698]
[1728845760461,0.24800336,62556.0,62555.0,0.083698]
[1728845760699,0.60033865,62556.0,62555.0,0.028638]
[1728845760930,0.48705936,62556.0,62555.0,0.028638]
[1728845761427,0.48705936,62556.0,62555.0,0.014638]
[1728845761653,0.48705936,62556.0,62555.0,0.020638]
[1728845761888,0.48705936,62556.0,62555.0,0.030638]
[1728845762339,0.48705936,62556.0,62555.0,0.028638]
[1728845762582,0.48704693,62556.0,62555.0,0.024638]
[1728845762821,0.48704693,62556.0,62555.0,0.025638]
[1728845763067,0.48704693,62556.0,62555.0,0.024638]
[1728845763307,0.32719093,62556.0,62555.0,0.024638]
[1728845763543,0.32819093,62556.0,62555.0,0.027638]
[1728845764051,0.32819093,62556.0,62555.0,0.024638]
[1728845764284,0.32919093,62556.0,62555.0,0.024638]
[1728845764527,0.48904693,62556.0,62555.0,0.024638]
[1728845766824,0.76355023,62556.0,62555.0,0.001638]
[1728845767772,0.65027094,62556.0,62555.0,0.001638]
[1728845768444,0.53699165,62556.0,62555.0,0.001638]
[1728845768649,0.65027094,62556.0,62555.0,0.001638]
[1728845774959,0.76355023,62556.0,62555.0,0.001638]
[1728845776141,1.14319923,62556.0,62555.0,0.001638]
[1728845776384,0.39142258,62553.0,62552.0,0.001638]
[1728845776599,0.69748871,62553.0,62552.0,0.001638]
[1728845777027,0.69748911,62553.0,62552.0,0.001638]
[1728845777263,0.85885882,62553.0,62552.0,0.001638]
[1728845777913,0.81192965,62553.0,62552.0,0.002638]
[1728845778138,0.82485621,62553.0,62552.0,0.003638]
[1728845778362,0.85980259,62553.0,62552.0,0.002638]
[1728845778583,0.86380259,62553.0,62552.0,0.003638]
[1728845778836,0.86379346,62553.0,62552.0,0.003638]
[1728845779074,0.91588339,62553.0,62552.0,0.003638]
[1728845779300,1.02816268,62553.0,62552.0,0.002638]
[1728845779517,0.96278416,62553.0,62552.0,0.002638]
[1728845779967,0.96678416,62553.0,62552.0,0.003638]
[1728845780193,1.08284637,62553.0,62552.0,0.003638]
[1728845780480,1.0349456,62553.0,62552.0,0.003638]
[1728845780695,0.92166631,62553.0,62552.0,0.003638]
[1728845781575,0.9216417,62553.0,62552.0,0.003638]
[1728845783323,0.9466848,62553.0,62552.0,0.003638]
[1728845785094,0.94390188,62553.0,62552.0,0.003638]
[1728845785313,0.9199505,62553.0,62552.0,0.003638]
[1728845785526,0.94390312,62553.0,62552.0,0.003638]
[1728845789071,0.90498011,62553.0,62552.0,0.003638]
[1728845789297,0.94391746,62553.0,62552.0,0.003638]
[1728845790213,0.91887436,62553.0,62552.0,0.003638]
[1728845793428,0.159887,62544.0,62543.0,0.26342122]
[1728845793637,0.56792765,62544.0,62543.0,0.26342122]
[1728845794063,0.56792765,62544.0,62542.0,0.023]
[1728845794289,0.20016136,62543.0,62542.0,0.023]
[1728845794725,0.22520488,62543.0,62542.0,0.023]
[1728845795415,0.22520488,62543.0,62542.0,0.024]
[1728845795652,0.22520488,62543.0,62542.0,0.023]
[1728845795909,0.22920488,62543.0,62542.0,0.023]
[1728845796156,0.23220488,62543.0,62542.0,0.023]
[1728845798898,0.07098087,62543.0,62542.0,0.182892]
[1728845799385,0.07098087,62543.0,62542.0,0.260892]
[1728845799870,0.06798087,62543.0,62542.0,0.260892]
[1728845800115,0.07098087,62543.0,62542.0,0.260892]
[1728845800355,0.04593735,62543.0,62542.0,0.260892]
[1728845800597,0.007,62543.0,62542.0,0.260892]
[1728845800826,0.04598183,62543.0,62542.0,0.260892]
[1728845801073,0.007,62543.0,62542.0,0.260892]
[1728845801325,0.04298185,62543.0,62542.0,0.260892]
[1728845801564,0.03898185,62543.0,62542.0,0.260892]
[1728845801811,0.04398185,62543.0,62542.0,0.263892]
[1728845802254,0.04398185,62543.0,62542.0,0.261892]
[1728845802467,0.04398185,62543.0,62542.0,0.265892]
[1728845802681,0.03898185,62543.0,62542.0,0.264892]
[1728845802906,0.03898185,62543.0,62542.0,0.266892]
[1728845805058,0.03898185,62543.0,62542.0,0.26853]
[1728845808707,0.02504157,62551.0,62549.0,0.023]
[1728845808960,0.03899927,62550.0,62549.0,0.023]
[1728845811078,0.15227856,62550.0,62549.0,0.023]
[1728845811566,0.15727856,62550.0,62549.0,0.023]
[1728845812000,0.16027856,62550.0,62549.0,0.023]
[1728845812428,0.15527856,62550.0,62549.0,0.023]
[1728845812725,0.15527588,62550.0,62549.0,0.023]
[1728845812976,0.11627929,62550.0,62549.0,0.023]
[1728845813225,0.16027576,62550.0,62549.0,0.159874]
[1728845813471,0.15727576,62550.0,62549.0,0.023]
[1728845813681,0.18531687,62550.0,62549.0,0.023]
[1728845814028,0.18231687,62550.0,62549.0,0.023]
[1728845814459,0.17931687,62550.0,62549.0,0.023]
[1728845815089,0.17931687,62550.0,62548.0,0.023]
[1728845815329,0.03899647,62549.0,62548.0,0.023]
[1728845817430,0.03999647,62549.0,62548.0,0.023]
[1728845818123,0.04299647,62549.0,62548.0,0.023]
[1728845820706,0.04299954,62549.0,62548.0,0.182877]
[1728845820926,0.04299954,62549.0,62548.0,0.023]
[1728845821372,0.04299954,62549.0,62546.0,0.479639]
[1728845821373,0.04299954,62549.0,62547.0,0.023]
[1728845821617,0.03899954,62548.0,62547.0,0.023]
[1728845821835,0.03899954,62548.0,62545.0,0.023]
[1728845822058,0.004,62549.0,62547.0,0.182879]
[1728845822291,0.0390025,62548.0,62547.0,0.182879]
[1728845823448,0.03900651,62548.0,62547.0,0.182879]
[1728845823683,0.03900656,62548.0,62547.0,0.182879]
[1728845824437,0.03900656,62548.0,62547.0,0.023]
[1728845824676,0.03900656,62548.0,62546.0,0.182881]
[1728845824913,0.03900656,62547.0,62546.0,0.182881]
[1728845825161,0.03900656,62547.0,62545.0,0.182883]
[1728845825388,0.03900656,62546.0,62545.0,0.182883]
[1728845826838,0.03900656,62546.0,62545.0,0.184883]
[1728845828825,0.03900656,62546.0,62545.0,0.182883]
[1728845829294,0.04100656,62546.0,62545.0,0.182883]
[1728845830231,0.04100656,62546.0,62542.0,0.641204]
[1728845830232,0.159887,62544.0,62543.0,0.023]
[1728845830486,0.31217285,62544.0,62543.0,0.023]
[1728845831747,0.15228585,62544.0,62543.0,0.023]
[1728845831936,0.31217285,62544.0,62543.0,0.025]
[1728845832655,0.31217285,62544.0,62543.0,0.023]
[1728845832878,0.31317285,62544.0,62543.0,0.023]
[1728845833328,0.337216,62544.0,62543.0,0.023]
[1728845834509,0.340216,62544.0,62543.0,0.023]
[1728845834746,0.342216,62544.0,62543.0,0.023]
[1728845834991,0.346216,62544.0,62543.0,0.023]
[1728845835251,0.186329,62544.0,62543.0,0.023]
[1728845840457,0.16128585,62544.0,62543.0,0.023]
[1728845841147,0.12227929,62544.0,62543.0,0.182889]
[1728845841408,0.04801747,62544.0,62543.0,0.182889]
[1728845842127,0.04301747,62544.0,62543.0,0.182889]
[1728845842371,0.03901747,62544.0,62543.0,0.183889]
[1728845842599,0.000819,62552.0,62551.0,0.023]
[1728845842840,0.03983306,62552.0,62551.0,0.023]
[1728845843524,0.06487358,62552.0,62551.0,0.023]
[1728845843963,0.06487358,62552.0,62551.0,0.182869]
[1728845844191,0.06987358,62552.0,62551.0,0.37204829]
[1728845844414,0.06987358,62552.0,62551.0,0.258769]
[1728845844642,0.04483306,62552.0,62551.0,0.258769]
[1728845844862,0.04783306,62552.0,62551.0,0.258769]
[1728845845526,0.03983306,62552.0,62551.0,0.258769]
[1728845846867,0.03983306,62552.0,62551.0,0.37804829]
[1728845847114,0.03983306,62552.0,62551.0,0.47064829]
[1728845848476,0.01582441,62552.0,62551.0,0.47064829]
[1728845849913,0.01582441,62552.0,62551.0,0.48275083]
[1728845853435,0.01582441,62552.0,62551.0,0.188869]
[1728845854141,0.03976259,62552.0,62551.0,0.188869]
[1728845854624,0.01582441,62552.0,62551.0,0.188869]
[1728845855362,0.03976259,62552.0,62551.0,0.188869]
[1728845857228,0.01582441,62552.0,62551.0,0.188869]
[1728845857466,0.01577813,62552.0,62551.0,0.188869]
[1728845857944,0.000819,62552.0,62551.0,0.188869]
[1728845858195,0.03971274,62552.0,62551.0,0.188869]
[1728845858918,0.01577813,62552.0,62551.0,0.188869]
[1728845859628,0.03971274,62552.0,62551.0,0.188869]
[1728845860142,0.01577813,62552.0,62551.0,0.188869]
[1728845860856,0.03971274,62552.0,62551.0,0.188869]
[1728845861345,0.01577813,62552.0,62551.0,0.188869]
[1728845861594,0.03971584,62552.0,62551.0,0.188869]
[1728845862086,0.01577932,62552.0,62551.0,0.188869]
[1728845862820,0.03971584,62552.0,62551.0,0.188869]
[1728845864077,0.03972341,62552.0,62551.0,0.188869]
[1728845865286,0.03972341,62552.0,62551.0,0.190507]
[1728845869905,0.03976949,62552.0,62551.0,0.190507]
[1728845870909,0.03976949,62552.0,62551.0,0.186507]
[1728845871145,0.03976949,62552.0,62551.0,0.184507]
[1728845871593,0.03976949,62552.0,62551.0,0.188507]
[1728845872307,0.03976949,62552.0,62551.0,0.194507]
[1728845873286,0.03976949,62552.0,62551.0,0.190507]
[1728845873533,0.03976949,62552.0,62551.0,0.186507]
[1728845873984,0.03976949,62552.0,62551.0,0.188507]
[1728845874202,0.03976949,62552.0,62551.0,0.190507]
[1728845874432,0.03976949,62552.0,62551.0,0.20264355]
[1728845875151,0.03976949,62552.0,62551.0,0.19864355]
[1728845875612,0.03976949,62552.0,62551.0,0.20264355]
[1728845876972,0.000819,62552.0,62551.0,0.20264355]
[1728845877193,0.03983253,62552.0,62551.0,0.20264355]
[1728845878587,0.03983253,62552.0,62551.0,0.190507]
[1728845880770,0.03983989,62552.0,62551.0,0.190507]
[1728845881232,0.03983988,62552.0,62551.0,0.190507]
[1728845882441,0.03983988,62552.0,62551.0,0.20247874]
[1728845888105,0.03983988,62552.0,62551.0,0.20248082]
[1728845891570,0.03983988,62552.0,62551.0,0.2024804]
[1728845894819,0.000819,62552.0,62551.0,0.2024804]
[1728845895055,0.03985584,62552.0,62551.0,0.2024804]
[1728845898573,0.03985826,62552.0,62551.0,0.2024804]
[1728845898792,0.03985826,62552.0,62551.0,0.20248177]
[1728845913746,0.093119,62552.0,62551.0,0.20248177]
[1728845913969,0.13216424,62552.0,62551.0,0.1964866]
[1728845914233,0.32444353,62552.0,62551.0,0.024638]
[1728845914519,0.64553354,62552.0,62551.0,0.007638]
[1728845914739,0.67057279,62552.0,62551.0,0.007638]
[1728845914896,0.67057279,62552.0,62551.0,0.003638]
[1728845915571,0.67057279,62552.0,62551.0,0.001638]
[1728845915726,0.67057279,62552.0,62551.0,0.024638]
[1728845915927,0.67057279,62552.0,62551.0,0.029638]
[1728845916136,0.67057279,62552.0,62551.0,0.031638]
[1728845916394,0.71859164,62552.0,62551.0,0.031638]
[1728845916598,0.71859164,62552.0,62551.0,0.024638]
[1728845917025,0.71859164,62552.0,62551.0,0.026638]
[1728845917225,0.67057279,62552.0,62551.0,0.025638]
[1728845917474,0.63152755,62552.0,62551.0,0.025638]
[1728845917609,0.67051959,62552.0,62551.0,0.025638]
[1728845917825,0.67051959,62552.0,62551.0,0.026638]
[1728845919136,0.67051959,62552.0,62551.0,0.025638]
[1728845919361,0.67051959,62552.0,62551.0,0.024638]
[1728845919579,0.48561434,62552.0,62551.0,0.024638]
[1728845919800,0.13411104,62552.0,62551.0,0.185507]
[1728845920052,0.04181104,62552.0,62551.0,0.185507]
[1728845920513,0.03981104,62552.0,62551.0,0.184507]
[1728845920735,0.04181104,62552.0,62551.0,0.184507]
[1728845922563,0.04181104,62552.0,62551.0,0.185507]
[1728845922778,0.03981104,62552.0,62551.0,0.185507]
[1728845922985,0.03981104,62552.0,62551.0,0.184507]
[1728845923407,0.04081104,62552.0,62551.0,0.189507]
[1728845923621,0.03981104,62552.0,62551.0,0.189507]
[1728845923878,0.03981104,62552.0,62551.0,0.192507]
[1728845924111,0.03979094,62552.0,62551.0,0.192507]
[1728845925431,0.03979217,62552.0,62551.0,0.192507]
[1728845928637,0.000819,62552.0,62551.0,0.192507]
[1728845928854,0.03979482,62552.0,62551.0,0.192507]
[1728845931727,0.23477411,62552.0,62551.0,0.032638]
[1728845931983,0.49444011,62552.0,62551.0,0.009638]
[1728845932456,0.45546429,62552.0,62551.0,0.009638]
[1728845932685,0.65567012,62552.0,62551.0,0.009638]
[1728845932931,0.65567012,62552.0,62551.0,0.001638]
[1728845933157,0.65767012,62552.0,62551.0,0.001638]
[1728845933403,0.68071114,62552.0,62551.0,0.001638]
[1728845933654,0.68271114,62552.0,62551.0,0.001638]
[1728845934119,0.68071114,62552.0,62551.0,0.002638]
[1728845934342,0.68271114,62552.0,62551.0,0.026638]
[1728845934571,0.68271114,62552.0,62551.0,0.025638]
[1728845934810,0.68271114,62552.0,62551.0,0.026638]
[1728845936016,0.68071114,62552.0,62551.0,0.025638]
[1728845936477,0.68271114,62552.0,62551.0,0.026638]
[1728845936914,0.68270797,62552.0,62551.0,0.026638]
[1728845939819,0.64372932,62552.0,62551.0,0.026638]
[1728845940052,0.68271146,62552.0,62551.0,0.026638]
[1728845940297,0.65767044,62552.0,62551.0,0.026638]
[1728845940536,0.54439115,62552.0,62551.0,0.025638]
[1728845940760,0.65567044,62552.0,62551.0,0.024638]
[1728845941441,0.65567044,62552.0,62551.0,0.025638]
[1728845942105,0.65767044,62552.0,62551.0,0.026638]
[1728845942324,0.65567044,62552.0,62551.0,0.025638]
[1728845942741,0.65767044,62552.0,62551.0,0.025638]
[1728845944281,0.66267044,62552.0,62551.0,0.025638]
[1728845946500,0.66267046,62552.0,62551.0,0.025638]
[1728845949968,0.66266422,62552.0,62551.0,0.025638]
[1728845953528,0.6877067,62552.0,62551.0,0.025638]
[1728845956458,0.73566137,62552.0,62551.0,0.025638]
[1728845956947,0.6877067,62552.0,62551.0,0.025638]
[1728845957410,0.75965179,62552.0,62551.0,0.025638]
[1728845957652,0.75965122,62552.0,62551.0,0.025638]
[1728845958149,0.1662,62549.0,62543.0,0.001638]
[1728845958379,0.251087,62544.0,62543.0,0.024638]
[1728845958598,0.40335525,62544.0,62543.0,0.024638]
[1728845958821,0.29007596,62544.0,62543.0,0.024638]
[1728845959281,0.31511909,62544.0,62543.0,0.024638]
[1728845959805,0.43039838,62544.0,62543.0,0.024638]
[1728845960252,0.40535525,62544.0,62543.0,0.024638]
[1728845963453,0.43039997,62544.0,62543.0,0.024638]
[1728845966193,0.59162398,62544.0,62543.0,0.024638]
[1728845968546,0.59164449,62544.0,62543.0,0.024638]
[1728845970412,0.56659977,62544.0,62543.0,0.024638]
[1728845972328,0.56660484,62544.0,62543.0,0.024638]
[1728845974639,0.59164968,62544.0,62543.0,0.024638]
[1728845976210,0.59165225,62544.0,62543.0,0.024638]
[1728845979664,0.56764371,62544.0,62543.0,0.024638]
[1728845979884,0.59165743,62544.0,62543.0,0.024638]
[1728845980331,0.56661259,62544.0,62543.0,0.024638]
[1728845983364,0.93654309,62544.0,62543.0,0.001638]
[1728845983607,0.8995208,62544.0,62543.0,0.001638]
[1728845983840,0.36477429,62541.0,62540.0,0.000683]
[1728845984077,0.56503224,62541.0,62540.0,0.000683]
[1728845984312,0.66600404,62541.0,62540.0,0.000683]
[1728845984551,0.57002946,62541.0,62540.0,0.000683]
[1728845984776,0.66600126,62541.0,62540.0,0.000683]
[1728845985772,0.67800126,62541.0,62540.0,0.001683]
[1728845986235,0.56472197,62541.0,62540.0,0.001683]
[1728845986485,0.65403229,62541.0,62540.0,0.001683]
[1728845986950,0.59302946,62541.0,62540.0,0.002683]
[1728845987409,0.66502027,62541.0,62540.0,0.002683]
[1728845987885,0.59301721,62541.0,62540.0,0.002683]
[1728845988583,0.66501396,62541.0,62540.0,0.002683]
[1728845990833,0.66500801,62541.0,62540.0,0.002683]
[1728845991049,0.66500884,62541.0,62540.0,0.002683]
[1728845991278,0.62598993,62541.0,62540.0,0.002683]
[1728845991500,0.66499651,62541.0,62540.0,0.002683]
[1728845992622,0.59300488,62541.0,62540.0,0.002683]
[1728845992838,0.66499289,62541.0,62540.0,0.002683]
[1728845993119,0.65999289,62541.0,62540.0,0.002683]
[1728845993331,0.68504061,62541.0,62540.0,0.002683]
[1728845994930,0.57339932,62541.0,62540.0,0.002683]
[1728845995147,0.64767203,62541.0,62540.0,0.002683]
[1728845995371,0.66267495,62541.0,62540.0,0.002683]
[1728845995588,0.61468515,62541.0,62540.0,0.002683]
[1728845998180,0.68667118,62541.0,62540.0,0.002683]
[1728845998635,0.61468515,62541.0,62540.0,0.002683]
[1728845999523,0.68667118,62541.0,62540.0,0.002683]
[1728845999986,0.61468515,62541.0,62540.0,0.002683]
[1728846000361,0.58963743,62541.0,62540.0,0.002683]
[1728846000566,0.66162346,62541.0,62540.0,0.002683]
[1728846000834,0.11163695,62541.0,62540.0,0.025683]
[1728846001045,0.06363913,62541.0,62540.0,0.26168]
[1728846001467,0.05263913,62541.0,62540.0,0.26068]
[1728846001897,0.04063913,62541.0,62540.0,0.25968]
[1728846002262,0.04363913,62541.0,62540.0,0.25968]
[1728846002493,0.04063913,62541.0,62540.0,0.25968]
[1728846002724,0.06563445,62541.0,62540.0,0.25968]
[1728846002949,0.06563445,62541.0,62540.0,0.26168]
[1728846002950,0.04063913,62541.0,62540.0,0.26168]
[1728846003404,0.04863913,62541.0,62540.0,0.26268]
[1728846003857,0.04063913,62541.0,62540.0,0.26168]
[1728846004070,0.04063913,62541.0,62540.0,0.26368]
[1728846012870,0.001638,62541.0,62540.0,0.26368]
[1728846013085,0.04059734,62541.0,62540.0,0.26368]
[1728846013557,0.04059734,62541.0,62540.0,0.35858]
[1728846014900,0.01662236,62541.0,62540.0,0.35858]
[1728846015371,0.01662236,62541.0,62540.0,0.51980401]
[1728846015572,0.01662236,62541.0,62540.0,0.55186401]
[1728846016270,0.01662236,62541.0,62540.0,0.54786401]
[1728846016690,0.01862236,62541.0,62540.0,0.56586401]
[1728846016917,0.01762236,62541.0,62540.0,0.55686401]
[1728846017184,0.01662236,62541.0,62540.0,0.54786401]
[1728846017425,0.001638,62541.0,62540.0,0.54786401]
[1728846017652,0.002638,62541.0,62540.0,0.55986401]
[1728846017881,0.003638,62541.0,62540.0,0.57186401]
[1728846018798,0.002638,62541.0,62540.0,0.55986401]
[1728846019017,0.001638,62541.0,62540.0,0.56186401]
[1728846019244,0.002638,62541.0,62540.0,0.57586401]
[1728846024893,0.01760424,62541.0,62540.0,0.57586401]
[1728846025115,0.01680476,62541.0,62540.0,0.57586401]
[1728846028109,0.01681232,62541.0,62540.0,0.57586401]
[1728846031629,0.00183852,62541.0,62540.0,0.57586401]
[1728846031832,0.01682267,62541.0,62540.0,0.57586401]
[1728846032255,0.01682267,62541.0,62540.0,0.57784401]
[1728846032705,0.01682267,62541.0,62540.0,0.57586401]
[1728846032931,0.000819,62551.0,62543.0,0.00198]
[1728846033149,0.000819,62551.0,62550.0,0.68907058]
[1728846033371,0.01579741,62551.0,62550.0,0.69407058]
[1728846033586,0.000819,62551.0,62550.0,0.58079129]
[1728846034770,0.000819,62551.0,62550.0,0.59479129]
[1728846035213,0.000819,62551.0,62550.0,0.61779129]
[1728846035434,0.000819,62551.0,62550.0,0.61581129]
[1728846036087,0.000819,62551.0,62550.0,0.62981129]
[1728846037413,0.000819,62551.0,62550.0,0.6459923]
[1728846039334,0.000819,62551.0,62550.0,0.80721631]
[1728846039894,0.000819,62551.0,62550.0,0.81906616]
[1728846043052,0.000819,62551.0,62550.0,0.82104616]
[1728846043310,0.000819,62552.0,62551.0,0.289849]
[1728846043544,0.000819,62552.0,62551.0,0.56393301]
[1728846044760,0.000819,62552.0,62551.0,0.57595301]
[1728846044999,0.000819,62552.0,62551.0,0.6892323]
[1728846045945,0.000819,62552.0,62551.0,0.7032323]
[1728846046188,0.000819,62552.0,62551.0,0.50915301]
[1728846046431,0.000819,62552.0,62551.0,0.319929]
[1728846046672,0.000819,62552.0,62551.0,0.219929]
[1728846046673,0.01578671,62552.0,62551.0,0.219929]
[1728846046916,0.03973609,62552.0,62551.0,0.219929]
[1728846047428,0.03973609,62552.0,62551.0,0.205929]
[1728846048087,0.03973609,62552.0,62551.0,0.218929]
[1728846048312,0.03973609,62552.0,62551.0,0.227929]
[1728846048537,0.03973609,62552.0,62551.0,0.214929]
[1728846048777,0.03973609,62552.0,62551.0,0.227929]
[1728846049005,0.03973609,62552.0,62551.0,0.220929]
[1728846049245,0.03973609,62552.0,62551.0,0.225929]
[1728846050144,0.03974322,62552.0,62551.0,0.225929]
[1728846052603,0.03974322,62552.0,62551.0,0.193869]
[1728846053527,0.03974322,62552.0,62551.0,0.187869]
[1728846053998,0.03974701,62552.0,62551.0,0.191869]
[1728846054461,0.03974701,62552.0,62551.0,0.19506608]
[1728846054683,0.03974656,62552.0,62551.0,0.19006608]
[1728846054925,0.01579131,62552.0,62551.0,0.19306608]
[1728846055378,0.01579131,62552.0,62551.0,0.35429009]
[1728846055602,0.01579131,62552.0,62551.0,0.35109301]
[1728846057256,0.01579131,62552.0,62551.0,0.37505001]
[1728846057486,0.000819,62552.0,62551.0,0.37505001]
[1728846057717,0.01579475,62552.0,62551.0,0.37505001]
[1728846057938,0.0157948,62552.0,62551.0,0.37505001]
[1728846060942,0.0158006,62552.0,62551.0,0.37505001]
[1728846061156,0.03977119,62552.0,62551.0,0.37505001]
[1728846061800,0.0158006,62552.0,62551.0,0.37505001]
[1728846062012,0.03977527,62552.0,62551.0,0.37505001]
[1728846062520,0.03977527,62552.0,62551.0,0.213826]
[1728846063223,0.03977527,62552.0,62551.0,0.215464]
[1728846063720,0.03977527,62552.0,62551.0,0.032595]
[1728846063956,0.03978627,62552.0,62551.0,0.192464]
[1728846064402,0.03978627,62552.0,62551.0,0.168507]
[1728846065346,0.03978627,62552.0,62551.0,0.191507]
[1728846067621,0.03977966,62552.0,62551.0,0.191507]
[1728846068312,0.03977912,62552.0,62551.0,0.191507]
[1728846071483,0.03978205,62552.0,62551.0,0.191507]
[1728846076516,0.03978205,62552.0,62551.0,0.187507]
[1728846076727,0.03978205,62552.0,62551.0,0.184507]
[1728846076933,0.03978205,62552.0,62551.0,0.186507]
[1728846078684,0.000819,62552.0,62551.0,0.186507]
[1728846078893,0.01581678,62552.0,62551.0,0.186507]
[1728846079108,0.03981323,62552.0,62551.0,0.186507]
[1728846086113,0.000819,62552.0,62551.0,0.186507]
[1728846086354,0.03981378,62552.0,62551.0,0.186507]
[1728846087096,0.03981378,62552.0,62551.0,0.34773101]
[1728846087580,0.000819,62552.0,62551.0,0.34773101]
[1728846087817,0.03981967,62552.0,62551.0,0.34773101]
[1728846088280,0.03981967,62552.0,62551.0,0.34673101]
[1728846088762,0.03981967,62552.0,62551.0,0.42933101]
[1728846089015,0.03981967,62552.0,62551.0,0.76587675]
[1728846089266,0.01581926,62552.0,62551.0,0.699485]
[1728846089520,0.01581926,62552.0,62551.0,0.65859101]
[1728846090003,0.01581646,62552.0,62551.0,0.65159101]
[1728846090248,0.01581646,62552.0,62551.0,0.90725327]
[1728846090502,0.01581646,62552.0,62551.0,0.93705881]
[1728846090764,0.01581646,62552.0,62551.0,0.90904926]
[1728846090992,0.01581646,62552.0,62551.0,0.92304926]
[1728846091237,0.01581646,62552.0,62551.0,0.93708485]
[1728846091471,0.01581646,62552.0,62551.0,0.92308485]
[1728846091707,0.01581646,62552.0,62551.0,0.94208485]
[1728846091975,0.01581646,62552.0,62551.0,0.97803901]
[1728846092225,0.000819,62552.0,62551.0,0.98798523]
[1728846092724,0.000819,62552.0,62551.0,1.00198523]
[1728846092969,0.000819,62556.0,62555.0,0.392499]
[1728846093191,0.000819,62556.0,62555.0,1.14216717]
[1728846093427,0.000819,62556.0,62555.0,1.04636416]